Cogmind - Beta 14 @@@ ROGUE MODE // 2024.08.30 @ 13:18:14 Player: MOPO3 Result: Core destroyed Performance ------------- Evolutions (2) 1000 Regions Visited (8) 1600 Robots Destroyed (123) 615 Value Destroyed (3152) 3152 Prototype IDs (10) 200 Alien Tech Used (0) 0 Bonus (452) 452 TOTAL SCORE: 7019 Bonus ------- Follower Combat Kills 152 Aligned with FarCom 300 Cogmind --------- Core Integrity 0/550 Matter 95/300 Energy 130/160 System Corruption 6% Temperature Critical (696) Movement Walking (340) Ox3 Location -8/Storage Parts ------- > --- POWER (1) -------- Light Nuclear Core > --- PROPULSION (3) --- Titanium Leg Titanium Leg > --- UTILITY (5) ------ High-capacity Storage Unit Improved Signal Interpreter Hardened Medium Armor Plating Improved Light Armor Plating Hacking Suite > --- WEAPON (2) ------- Heavy EM Pulse Gun Improved Medium Laser > --- INVENTORY (20) --- Light Nuclear Core Light Nuclear Core Cold Fusion Reactor Carbon-fiber Leg Carbon-fiber Leg Titanium Leg Aerolev Unit Aerolev Unit Large Storage Unit Light Armor Plating Shield Generator Improved EM Shotgun Heavy Particle Cannon Rocket Launcher Peak State ------------ > --- POWER ------------ Cold Fusion Reactor > --- PROPULSION ------- Titanium Leg Titanium Leg Titanium Leg > --- UTILITY ---------- High-capacity Storage Unit Improved Signal Interpreter Hacking Suite Hacking Suite Drone Bay > --- WEAPON ----------- Ion Cannon Minigun > --- INVENTORY -------- Light Nuclear Core Light Nuclear Core Light Nuclear Core Carbon-fiber Leg Carbon-fiber Leg Titanium Leg Aerolev Unit Aerolev Unit Large Storage Unit Light Armor Plating Hardened Medium Armor Plating Improved Light Armor Plating Shield Generator Heavy EM Pulse Gun Improved EM Shotgun Improved Medium Laser Heavy Particle Cannon Improved Assault Rifle Rocket Launcher [Rating: 41] Favorites ----------- Power Light Nuclear Core Engine Ion Engine Power Core Light Nuclear Core Reactor Cold Fusion Reactor Propulsion Light Treads Treads Light Treads Leg Titanium Leg Hover Unit Airjet Flight Unit VTOL Module Utility Hacking Suite Device Improved Terrain Scanner Storage Medium Storage Unit Processor Signal Interpreter Hackware Hacking Suite Protection Hardened Medium Armor Plating Weapon Heavy Mace Energy Gun Small Laser Energy Cannon Ion Cannon Ballistic Gun Minigun Ballistic Cannon Battle Cannon Launcher Rocket Launcher Special Weapon Field Lobotomy Kit Impact Weapon Heavy Mace Slashing Weapon Katana Build | -11 -10 -10 -9 -9 -9 -8 -8 -8 ------- Run | Yrd Mat Min Mat Min Exi Min Mat Sto Slots Evolved 4 | . . . 2 . . . 2 . Power . | . . . . . . . . . Propulsion 1 | . . . . . . . 1 . Utility 3 | . . . 2 . . . 1 . Weapon . | . . . . . . . . . Parts Attached 93 | 8 6 4 12 9 3 1 16 34 Power 12 | 1 . 2 2 2 . . 2 3 Engine 6 | 1 . 2 2 1 . . . . Core 5 | . . . . 1 . . 2 2 Reactor 1 | . . . . . . . . 1 Propulsion 28 | 2 2 . 3 2 . . 6 13 Treads 6 | 2 2 . 1 . . . . 1 Leg 7 | . . . . . . . 2 5 Wheel . | . . . . . . . . . Hover 8 | . . . 2 2 . . 1 3 Flight 7 | . . . . . . . 3 4 Utility 19 | 2 2 . 2 . . . 5 8 Device 2 | 1 . . . . . . . 1 Storage 4 | 1 1 . . . . . 1 1 Processor 2 | . 1 . . . . . 1 . Hackware 2 | . . . 2 . . . . . Protection 9 | . . . . . . . 3 6 Artifact . | . . . . . . . . . Weapon 34 | 3 2 2 5 5 3 1 3 10 Energy Gun 12 | 2 2 1 1 3 . . 1 2 Energy Cannon 7 | . . . 1 1 2 1 . 2 Ballistic Gun 4 | 1 . . . . . . . 3 Ballistic Cannon 2 | . . 1 1 . . . . . Launcher 1 | . . . . . . . . 1 Special Weapon 1 | . . . . . 1 . . . Impact Weapon 6 | . . . 2 1 . . 1 2 Slashing Weapon 1 | . . . . . . . 1 . Piercing Weapon . | . . . . . . . . . Special Melee Weapon . | . . . . . . . . . Unidentified Prototypes 8 | . . . . . 3 . . 5 Parts Lost 23 | . . 1 2 3 . . 7 10 Power 3 | . . 1 1 . . . . 1 Propulsion 8 | . . . . 2 . . 5 1 Utility 5 | . . . . . . . 1 4 Weapon 7 | . . . 1 1 . . 1 4 Highest Loss Streak 6 | . . 1 2 1 . . 3 6 To Critical Strikes . | . . . . . . . . . Average Slot Usage (%) 97 | . 99 99 99 99 93 89 93 98 Engine 4 | . 14 13 10 2 . . . . Core 4 | . . . . 9 11 11 9 3 Reactor 1 | . . . . . . . . 5 Treads 7 | . 27 28 4 . . . . . Leg 5 | . . . . . . . 4 17 Hover 8 | . . . 17 21 22 22 4 8 Flight 2 | . . . . . . . 12 . Storage 10 | . 14 14 11 11 11 11 9 9 Processor 10 | . 13 14 11 11 11 11 9 9 Hackware 13 | . . . 22 22 22 22 18 17 Protection 4 | . . . . . . . 8 9 Energy Gun 7 | . 27 16 9 8 4 . . . Energy Cannon 2 | . . . 1 7 5 1 . 4 Ballistic Gun 1 | . . . . . . . . 4 Ballistic Cannon 2 | . . 11 10 2 . . . . Special Weapon 1 | . . . . . 5 11 . . Impact Weapon 3 | . . . . 3 . . 8 4 Slashing Weapon 2 | . . . . . . . 7 4 Peak Build Rating 41 | 9 9 10 23 25 38 32 37 41 Average Rating 24 | 7 7 9 19 23 26 29 28 37 On Entrance 18 | . 9 8 10 22 23 29 32 30 Naked Turns . | . . . . . . . . . Heaviest Build 72 | 15 19 19 24 24 31 29 44 72 Greatest Support 51 | 40 40 40 40 16 16 16 30 51 Greatest Overweight (x) 12 | 3 . . 2 2 1 1 4 12 Average Overweight (x) . | . . . . 1 . 1 1 1 Largest Inventory Capacity 20 | 8 10 10 10 10 10 10 15 20 Average Capacity 13 | 7 9 10 10 10 10 10 14 18 Most Carried 20 | 6 10 10 10 10 10 10 12 20 Average Carried 11 | 3 9 9 9 9 9 10 10 16 Final Capacity 20 | 8 10 10 10 10 10 10 15 20 Final Carried 14 | 4 10 10 10 9 10 10 11 14 Class Distribution -------------------- 70% | Hacker-Mutant 29% | Mutant Dominant Class ---------------- Mutant | -10/Materials Mutant | -10/Mines Hacker-Mutant | -9/Materials Hacker-Mutant | -9/Mines Hacker-Mutant | -9/Exiles Hacker-Mutant | -8/Mines Hacker-Mutant | -8/Materials Hacker-Mutant | -8/Storage Resources | -11 -10 -10 -9 -9 -9 -8 -8 -8 ----------- Run | Yrd Mat Min Mat Min Exi Min Mat Sto Matter Collected 1488 | 280 60 145 188 110 . 30 166 509 Remotely . | . . . . . . . . . Salvage Created 4232 | 112 694 348 227 196 . . 972 1683 Parts 201 | 4 55 21 16 19 . . 22 64 Haulers Intercepted 4 | . . . 1 . . . 2 1 Recyclers Shooed 4 | 1 1 . . . . . . 2 Parts Field Recycled . | . . . . . . . . . Retrieved Matter . | . . . . . . . . . Parts Self-Destructed . | . . . . . . . . . Prevented . | . . . . . . . . . Kills | -11 -10 -10 -9 -9 -9 -8 -8 -8 ------- Run | Yrd Mat Min Mat Min Exi Min Mat Sto Combat Hostiles Destroyed 81 | . 12 11 5 8 . . 17 28 Melee 20 | . . . . . . . 9 11 Guns 28 | . 12 4 1 1 . . 2 8 Cannons 19 | . . 6 4 7 . . . 2 Classes Destroyed 14 | 2 7 1 2 1 . . 1 . Worker 12 | . 2 2 . 1 . . 3 4 Builder 12 | . 7 . . . . . 2 3 Tunneler 4 | 3 1 . . . . . . . Hauler 4 | . . . 1 . . . 2 1 Recycler 5 | 1 1 . . . . . . 3 Mechanic 2 | . 1 . . . . . . 1 Operator 3 | . 2 . . . . . . 1 Watcher 1 | . 1 . . . . . . . Swarmer 19 | . 6 3 1 5 . . . 4 Grunt 42 | . 6 7 2 2 . . 12 13 Brawler 2 | . . . . . . . 1 1 Duelist 1 | . . . . 1 . . . . Sentry 16 | . . . 2 . . . 4 10 Assembled 1 | . . 1 . . . . . . Best Kill Streak 6 | 2 5 4 2 4 . . 4 6 Combat Bots Only 4 | . 3 3 2 4 . . 3 4 Max Kills in Single Turn 2 | 1 1 2 1 1 . . 1 1 Gunslinging . | . . . . . . . . . Exploded . | . . . . . . . . . Melee 1 | . . . . . . . 1 1 Uniques/NPCs Destroyed . | . . . . . . . . . Combat | -11 -10 -10 -9 -9 -9 -8 -8 -8 -------- Run | Yrd Mat Min Mat Min Exi Min Mat Sto Hostile Shots Fired 446 | . 56 36 29 20 . 11 82 212 Missed 93 | . 8 9 10 9 . 5 17 35 Damage Taken 5199 | . 453 285 328 184 . 103 1051 2795 Core 908 | . 106 38 77 73 . 6 136 472 Absorbed by Shields . | . . . . . . . . . Regen/Repaired (Parts) 669 | . 154 . . . . . 182 333 Core Remaining (%) 67 | 100 . 42 . . . 61 . . Volleys Fired 248 | 7 73 29 24 15 . 4 17 79 Largest 2 | 2 2 2 2 2 . 1 1 2 Hottest 135 | 100 100 105 99 105 . . 45 135 Shots Fired 446 | 14 146 58 40 29 . 4 17 138 Gun 318 | 14 146 37 20 8 . . 16 77 Cannon 123 | . . 21 20 21 . . . 61 Launcher . | . . . . . . . . . Special 5 | . . . . . . 4 1 . Kinetic 116 | . . 21 16 6 . . . 73 Thermal 301 | 14 146 37 24 15 . . . 65 Explosive . | . . . . . . . . . Electromagnetic 24 | . . . . 8 . . 16 . Robot Hit Streak 14 | 5 11 7 9 11 . 8 14 12 Robot Miss Streak 4 | 1 4 3 4 2 . . 1 3 Penetration Max . | . . . . . . . . . Secondary Targets 3 | . 3 . . . . . . . Max Gunslinging Chain 1 | . 1 . . . . . . . Shots Hit Robots 388 | 9 91 32 21 21 . 4 67 143 Core Hits 142 | 5 38 19 10 13 . 1 18 38 Critical Kills . | . . . . . . . . . Critical Parts Destroyed 18 | . . . . . . . 9 9 Critical Strikes 31 | 1 8 3 . 1 . . 9 9 Burn 10 | 1 8 1 . . . . . . Blast 3 | . . 2 . 1 . . . . Smash 18 | . . . . . . . 9 9 Melee Attacks 196 | . . . 2 4 . . 91 99 Impact 159 | . . . 2 4 . . 75 78 Slashing 37 | . . . . . . . 16 21 Piercing . | . . . . . . . . . Sneak Attacks 16 | . . . . 1 . . 8 7 Combat Hostiles 1 | . . . . . . . 1 . Follow-up Attacks 17 | . . . . . . . 5 12 Damage Inflicted 8907 | 115 1064 506 379 524 . 17 2436 3866 Guns 2635 | 115 1055 225 85 115 . . 248 792 Cannons 1750 | . . 275 275 307 . . . 893 Explosions . | . . . . . . . . . Melee 4441 | . . . . 77 . . 2188 2176 Ramming 81 | . 9 6 19 25 . 17 . 5 Kinetic 1339 | . . 275 204 101 . . . 759 Thermal 2683 | 115 1055 225 156 206 . . . 926 Explosive . | . . . . . . . . . Electromagnetic 363 | . . . . 115 . . 248 . Impact 3883 | . . . . 77 . . 2009 1797 Slashing 558 | . . . . . . . 179 379 Piercing . | . . . . . . . . . Highest Corruption 6 | . . . . . . . 1 6 Average Corruption 3 | . . . . . . . 1 3 Corruption Purged . | . . . . . . . . . Corruption Blocked . | . . . . . . . . . Effects 65 | . . . . . . . 5 60 Message Errors 16 | . . . . . . . 1 15 Matter Fused 12 | . . . . . . . 1 11 Heat Flow Errors 9 | . . . . . . . 1 8 Energy Discharges 10 | . . . . . . . 1 9 Parts Fused 2 | . . . . . . . . 2 Data Loss (minor) 6 | . . . . . . . 1 5 Data Loss (major) 4 | . . . . . . . . 4 Misfires 2 | . . . . . . . . 2 Alerts 1 | . . . . . . . . 1 Weapon Failures 3 | . . . . . . . . 3 Overload Shots . | . . . . . . . . . Overflow Damage 1398 | . . . . 4 . . 729 665 Projectiles 10 | . . . . 4 . . . 6 Explosions . | . . . . . . . . . Melee 1388 | . . . . . . . 729 659 Knockbacks 24 | . . 7 2 . . 1 4 10 Impact 13 | . . . . . . 1 4 8 Kinetic 7 | . . 5 2 . . . . . Secondary 4 | . . 2 . . . . . 2 Self-Inflicted Damage 119 | . . . 97 12 . 8 . 2 Shots 2 | . . . 2 . . . . . Rammed 14 | . 2 3 2 3 . 3 . 1 Targets Rammed 16 | . 3 3 2 3 . 3 . 2 Kicked 1 | . . . . . . . . 1 Crushed 1 | . 1 . . . . . . . Highest Temperature 702 | 78 354 225 117 233 . . 265 702 Average Temperature 95 | 31 83 75 45 78 . . 115 136 Received Heat Transfer 2217 | . 156 87 84 . . 54 558 1278 Effects 9 | . . . . . . . 1 8 Shutdowns 1 | . . . . . . . . 1 Energy Bleed 2 | . . . . . . . 1 1 Matter Decay 2 | . . . . . . . . 2 Short Circuit 3 | . . . . . . . . 3 Damage (core) 1 | . . . . . . . . 1 Siege Activations . | . . . . . . . . . Robots Corrupted 21 | . . . . . . . 11 10 Combat Hostiles 13 | . . . . . . . 6 7 Parts Fried 23 | . . . . . . . 8 15 Impact Corruptions 44 | . . . . . . . 22 22 Robots Melted 1 | . . 1 . . . . . . Combat Hostiles 1 | . . 1 . . . . . . Parts Melted 12 | . 8 2 . 1 . . . 1 Heat Transferred 6678 | 407 3500 610 311 333 . . . 1517 Parts Sabotaged . | . . . . . . . . . Parts Stolen . | . . . . . . . . . Parts Stripped . | . . . . . . . . . Power Chain Reactions . | . . . . . . . . . Alert | -11 -10 -10 -9 -9 -9 -8 -8 -8 ------- Run | Yrd Mat Min Mat Min Exi Min Mat Sto Peak Influence 332 | 20 216 103 193 235 . 64 289 332 Initial 97 | . 13 8 . 66 . . . 97 Average 114 | 9 93 52 82 105 . 28 95 208 Maximum Alert Level 1 | . 1 . . 1 . . 1 1 Low Security (%) 72 | 100 85 100 100 75 . 100 71 38 Level 1 27 | . 14 . . 24 . . 28 61 Level 2 . | . . . . . . . . . Level 3 . | . . . . . . . . . Level 4 . | . . . . . . . . . Level 5 . | . . . . . . . . . High Security . | . . . . . . . . . Max Security . | . . . . . . . . . Squads Dispatched 13 | . 3 1 . . . . 5 4 Investigation 5 | . . 1 . . . . 3 1 Extermination . | . . . . . . . . . Reinforcement 8 | . 3 . . . . . 2 3 Assault . | . . . . . . . . . Garrison . | . . . . . . . . . Intercept . | . . . . . . . . . Searches Triggered . | . . . . . . . . . Construction Impeded 2 | . . . . . . . 1 1 Haulers Reinforced . | . . . . . . . . . Active Scanning Responses . | . . . . . . . . . Cargo Convoy Interrupts . | . . . . . . . . . Stealth | -11 -10 -10 -9 -9 -9 -8 -8 -8 --------- Run | Yrd Mat Min Mat Min Exi Min Mat Sto Distress Signals 13 | . 1 . 2 . . . 5 5 Communications Jammed . | . . . . . . . . . Distress Signals . | . . . . . . . . . Times Spotted 151 | . 25 11 18 14 . 6 34 43 Peak Tracking Total 6 | . 3 3 4 4 . 3 5 6 Tactical Retreats 14 | . 2 1 2 3 . . 4 2 Traps | -11 -10 -10 -9 -9 -9 -8 -8 -8 ------- Run | Yrd Mat Min Mat Min Exi Min Mat Sto Traps Triggered 6 | . . . . . . . 1 5 Indirectly . | . . . . . . . . . Trap Hack Attempts . | . . . . . . . . . Triggered . | . . . . . . . . . Disarmed . | . . . . . . . . . Reprogrammed . | . . . . . . . . . Reused . | . . . . . . . . . Traps Extracted . | . . . . . . . . . Installed . | . . . . . . . . . Triggered . | . . . . . . . . . Machines | -11 -10 -10 -9 -9 -9 -8 -8 -8 ---------- Run | Yrd Mat Min Mat Min Exi Min Mat Sto Machines Disabled 11 | . . 2 4 1 . . . 4 Max in Single Turn 3 | . . 1 3 1 . . . 1 Machines Repaired . | . . . . . . . . . Machines Dismantled . | . . . . . . . . . Machines Sabotaged . | . . . . . . . . . Overloaded Fab Kills . | . . . . . . . . . Hacking | -11 -10 -10 -9 -9 -9 -8 -8 -8 --------- Run | Yrd Mat Min Mat Min Exi Min Mat Sto Machines Accessed 18 | . 4 3 1 . . . 6 4 Terminals 13 | . 3 1 1 . . . 5 3 Fabricators . | . . . . . . . . . Repair Stations 3 | . 1 . . . . . 1 1 Recycling Units . | . . . . . . . . . Scanalyzers . | . . . . . . . . . Garrison Access . | . . . . . . . . . Total Hacks 60 | . 15 4 4 . . . 22 15 Successful 37 | . 9 2 2 . . . 12 12 Failed 22 | . 6 2 2 . . . 9 3 Catastrophic 5 | . 2 1 . . . . 2 . Database Lockouts 1 | . . . . . . . 1 . Manual 30 | . 7 2 4 . 1 . 12 4 Terminals 37 | . 8 2 4 . . . 18 5 Fabricators . | . . . . . . . . . Repair Stations 21 | . 7 . . . . . 4 10 Recycling Units . | . . . . . . . . . Scanalyzers . | . . . . . . . . . Garrison Access . | . . . . . . . . . Terminal Hacks 18 | . 3 2 2 . . . 8 3 Record 2 | . 1 . . . . . 1 . Part Schematic 1 | . . . . . . . 1 . Prototype ID Bank 1 | . . . . . . . 1 . Open Door 4 | . . 2 . . . . . 2 Level Access Points 3 | . . . 1 . . . 1 1 Branch Access Points 3 | . 1 . 1 . . . 1 . Unreport Threat 2 | . 1 . . . . . 1 . Recall Assault 1 | . . . . . . . 1 . Hauler Manifests 1 | . . . . . . . 1 . Fabricator Hacks . | . . . . . . . . . Repair Station Hacks 19 | . 6 . . . . . 4 9 Scan Component 10 | . 3 . . . . . 2 5 Repair 9 | . 3 . . . . . 2 4 Recycling Unit Hacks . | . . . . . . . . . Scanalyzer . | . . . . . . . . . Garrison Access Hacks . | . . . . . . . . . Unauthorized Hacks . | . . . . . . . . . Terminals . | . . . . . . . . . Fabricators . | . . . . . . . . . Repair Stations . | . . . . . . . . . Recycling Units . | . . . . . . . . . Scanalyzers . | . . . . . . . . . Garrison Access . | . . . . . . . . . Data Cores Recovered . | . . . . . . . . . Used . | . . . . . . . . . Hacking Detections 13 | . 3 1 1 . . . 6 2 Full Trace Events 1 | . . . . . . . 1 . Feedback Events . | . . . . . . . . . Feedback Blocked . | . . . . . . . . . Robot Schematics Acquired . | . . . . . . . . . Robots Built . | . . . . . . . . . Authchips . | . . . . . . . . . Time . | . . . . . . . . . Total Robot Build Rating . | . . . . . . . . . Part Schematics Acquired 1 | . . . . . . . 1 . Parts Built . | . . . . . . . . . Authchips . | . . . . . . . . . Time . | . . . . . . . . . Total Part Build Rating . | . . . . . . . . . Parts Repaired 9 | . 3 . . . . . 2 4 Time 306 | . 78 . . . . . 76 152 Parts Recycled . | . . . . . . . . . Recycled Matter . | . . . . . . . . . Retrieved Matter . | . . . . . . . . . Retrieved Components . | . . . . . . . . . Parts Scanalyzed . | . . . . . . . . . Part Schematics Acquired . | . . . . . . . . . Parts Damaged . | . . . . . . . . . Bothacking | -11 -10 -10 -9 -9 -9 -8 -8 -8 ------------ Run | Yrd Mat Min Mat Min Exi Min Mat Sto Used RIF Installer . | . . . . . . . . . Robots Hacked . | . . . . . . . . . Non-combat . | . . . . . . . . . Combat . | . . . . . . . . . Robot Hacks Applied . | . . . . . . . . . Relay Couplers Released . | . . . . . . . . . Fabnet Peak Effective % . | . . . . . . . . . Robots Rewired . | . . . . . . . . . Allies Hacked . | . . . . . . . . . Hacks Repelled . | . . . . . . . . . Allies | -11 -10 -10 -9 -9 -9 -8 -8 -8 -------- Run | Yrd Mat Min Mat Min Exi Min Mat Sto Total Allies 7 | . . . . 3 . 4 . . Largest Group 4 | . . . . 3 . 4 4 . Highest-Rated Group 79 | . . . . 40 . 79 79 . Highest-Rated Ally 29 | . . . . 16 . 29 29 . Total Orders . | . . . . . . . . . Ally Attacks 52 | . . . . 17 . 13 22 . Total Damage 658 | . . . . 98 . 177 383 . Kills 6 | . . . . 2 . 2 2 . Allies Corrupted . | . . . . . . . . . Allies Melted . | . . . . . . . . . Field Lobotomies 4 | . . . . . . 4 . . Intel | -11 -10 -10 -9 -9 -9 -8 -8 -8 ------- Run | Yrd Mat Min Mat Min Exi Min Mat Sto Robot Analysis Total . | . . . . . . . . . Derelict Logs Recovered 4 | . . 2 . 2 . . . . Drone Launches . | . . . . . . . . . Drone Recoveries . | . . . . . . . . . Exploration | -11 -10 -10 -9 -9 -9 -8 -8 -8 ------------- Run | Yrd Mat Min Mat Min Exi Min Mat Sto Turns Passed 10082 | 185 1450 1258 621 880 319 646 2050 2673 Spaces Moved 4507 | 99 686 581 358 640 268 523 634 718 Core 12 | 11 . . . . . . . 1 Treads 1424 | 88 686 581 69 . . . . . Legs 703 | . . . . . . . 241 462 Wheels . | . . . . . . . . . Hover 2171 | . . . 289 640 268 523 198 253 Flight 197 | . . . . . . . 195 2 Fastest Speed 50 | 50 160 160 116 116 56 116 112 102 Average Speed 149 | 149 160 160 124 116 114 116 197 167 Slowest Speed 650 | 200 160 160 200 180 116 116 300 650 Overloaded Moves . | . . . . . . . . . Propulsion Burnouts . | . . . . . . . . . Robots Hopped . | . . . . . . . . . Cave-ins Triggered . | . . . . . . . . . Exploration Rate (%) 58 | 6 62 74 31 98 43 91 39 86 Regions Visited 8 Branch Regions 5 Pre-discovered Areas 1 | . . 1 . . . . . . Known Exits Taken 7 | . 1 1 1 1 1 1 1 . Unknown Exits Taken 1 | 1 . . . . . . . . Scrap Searched 4 | . . 1 . 2 . 1 . . Spaces Dug 29 | . . . 2 3 . . 15 9 Terrain Destroyed 103 | . . 4 59 11 . . 15 14 Melee 29 | . . . 2 3 . . 15 9 Projectile 11 | . . 4 2 . . . . 5 AOE 63 | . . . 55 8 . . . . Terrain Rammed . | . . . . . . . . . Walls Destroyed . | . . . . . . . . . Machines Disabled . | . . . . . . . . . Actions | -11 -10 -10 -9 -9 -9 -8 -8 -8 --------- Run | Yrd Mat Min Mat Min Exi Min Mat Sto Total 7115 | 119 891 854 488 738 281 553 1275 1916 Wait 1972 | . 110 220 74 54 . 23 518 973 Move 4499 | 98 685 580 357 639 267 522 633 718 Hop . | . . . . . . . . . Pick Up 70 | 6 9 8 8 6 5 . 9 19 Fast Attach 32 | 5 3 1 4 2 1 1 4 11 Attach 25 | 2 . 1 3 2 1 . 6 10 Detach . | . . . . . . . . . Swap 36 | 1 3 2 5 5 1 . 6 13 Drop 55 | . 5 10 9 8 6 . 4 13 Fire 248 | 7 73 29 24 15 . 4 17 79 Melee 162 | . . . 2 4 . . 78 78 Ram 8 | . . . 1 3 . 3 . 1 Kick 1 | . . . . . . . . 1 Crush 7 | . 3 3 1 . . . . . Escape Stasis . | . . . . . . . . . Rewire . | . . . . . . . . . Trap . | . . . . . . . . . Miscellaneous . | . . . . . . . . . Route ------- -11/Scrapyard -10/Materials (discovered 4 exits: *Mat x2 / *Min x2) -10/Mines (discovered 2 exits: *Mat x2) -9/Materials (discovered 5 exits: *Mat x3 / *Min x2) -9/Mines (discovered 3 exits: *Mat x2 / *Exi) -9/Exiles -8/Mines -8/Materials (discovered 5 exits: *Fac x3 / *Sto x2) -8/Storage (discovered 1 exit: Fac) History --------- Turn | Location | Event 27 | -11/Scrapyard | Discovered new exit (range 15) 186 | -11/Scrapyard | Entered Materials 300 | -10/Materials | Build established: Mutant 701 | -10/Materials | Repaired Lgt. Treads 728 | -10/Materials | Repaired Lgt. Treads 756 | -10/Materials | Repaired Med. Laser 1119 | -10/Materials | Discovered new exit (range 6) 1487 | -10/Materials | Identified exit to Mines 1594 | -10/Materials | Discovered new exit (range 16) 1636 | -10/Materials | Entered Mines 1697 | -10/Mines | Discovered new exit (range 5) 1711 | -10/Mines | Identified exit to Materials 1841 | -10/Mines | Learned Materials emergency access door positions 1861 | -10/Mines | Discovered exit to Materials (range 16) 1872 | -10/Mines | A weapon hastily lodged in a ceiling crevice suddenly fell to the ground 2009 | -10/Mines | Met a Derelict who couldn't figure out how to use a Trap Extractor 2198 | -10/Mines | Met a Derelict shopkeep closing up shop 2432 | -10/Mines | Core integrity fell below 50% 2521 | -10/Mines | Excavation squad dispatched 2521 | -10/Mines | A large section of the Mines collapsed 2695 | -10/Mines | Learned location of Storage (-8) 2894 | -10/Mines | Entered Materials 2894 | -9/Materials | Evolved 2 slots: Utility x2 3186 | -9/Materials | Build established: Hacker-Mutant 3258 | -9/Materials | Discovered new exit (range 16) 3259 | -9/Materials | Identified exit to Mines 3259 | -9/Materials | Identified exit to Materials 3515 | -9/Materials | Entered Mines 3555 | -9/Mines | Assisted by bots powering up and referring to "LRC-V3" 3658 | -9/Mines | Lost 3 allies 3753 | -9/Mines | Learned location of 1 exit from Lower Caves 3804 | -9/Mines | Discovered exit to Materials (range 11) 3844 | -9/Mines | Learned Materials emergency access door positions 3846 | -9/Mines | Discovered exit to Materials (range 8) 4105 | -9/Mines | Received a Rocket Launcher from a helpful Derelict 4156 | -9/Mines | Deemed a non-threat by the Exiles lab entrance 4157 | -9/Mines | Discovered new exit (range 5) 4162 | -9/Mines | Identified exit to Exiles 4395 | -9/Mines | Entered Exiles 4429 | -9/Exiles | Met 8R-AWN 4445 | -9/Exiles | Met EX-HEX 4477 | -9/Exiles | Met EX-BIN 4492 | -9/Exiles | Aligned with FarCom system 4493 | -9/Exiles | Given EX-Vault access code 4522 | -9/Exiles | Opened EX-Vault 4525 | -9/Exiles | Found Prototype Energy Cannon 4531 | -9/Exiles | Identified Gui. Plasma Cannon 4535 | -9/Exiles | Found Prototype Energy Cannon 4544 | -9/Exiles | Identified YOLO Cannon 4548 | -9/Exiles | Found Prototype Special Weapon 4548 | -9/Exiles | Identified Field Lobotomy Kit 4588 | -9/Exiles | Warned to stay clear of 0b10 Research branches 4692 | -9/Exiles | Discovered new exit (range 15) 4713 | -9/Exiles | Identified exit to Mines 4714 | -9/Exiles | Left Exiles lab with Field Lobotomy Kit 4714 | -9/Exiles | Entered Mines 4717 | -8/Mines | Assimilated G-47 Trooper with FLK Orb 4721 | -8/Mines | Assimilated L-31 Rogue with FLK Orb 4731 | -8/Mines | Assimilated G-47 Trooper with FLK Orb 4865 | -8/Mines | Assimilated G-50 Soldier with FLK Orb 5331 | -8/Mines | Discovered exit to Materials (range 13) 5360 | -8/Mines | Entered Materials 5360 | -8/Materials | Accompanied by 4 allies 5360 | -8/Materials | Evolved 2 slots: Propulsion x1, Utility x1 5361 | -8/Materials | Identified exit to Storage 5601 | -8/Materials | Lost 3 allies 5789 | -8/Materials | Lost 3 parts (2n1w) 5838 | -8/Materials | Identified exit to Factory 6253 | -8/Materials | Repaired Hvy. Particle Cannon 6292 | -8/Materials | Repaired Ion Cannon 6759 | -8/Materials | Lost 3 parts (2n1u) 7105 | -8/Materials | Central database locked down 7410 | -8/Materials | Entered Storage 7544 | -8/Storage | Repaired Lgt. Nuclear Core 7583 | -8/Storage | Repaired Carbon-fiber Leg 7622 | -8/Storage | Repaired Carbon-fiber Leg 7661 | -8/Storage | Repaired Hrd. Medium Armor Plating 8490 | -8/Storage | Core integrity fell below 50% 10037 | -8/Storage | Core integrity fell below 20% 10084 | -8/Storage | Core destroyed Last Messages --------------- System corrupted: Imp. Assault Rifle jammed. G-47 Trooper destroyed. System corrupted: Heat flow error (+168). Y-45 Defender destroyed. Critical hit (Burn: +37). Cold Fusion Reactor broken. Overheating: Short circuit. Imp. Assault Rifle destroyed. Titanium Leg broken. Overheating: Short circuit. Identified Imp. Medium Laser. Critical hit (Burn: +37). Overheating: Matter decay (-26). R-06 Scavenger collects Beam Rifle. Overheating: Matter decay (-26). System corrupted: Heat flow error (+131). Power failure, Lgt. Nuclear Core shutdown. Imp. Medium Laser broken. Overheating: Short circuit. Overheating: Core damaged (-77). Map ----- +----------------------------------------------------+ | ########## # / #????????????????? | | #????????## ############????????????????? | | #########?# #????##########?????????????? | | #?# #????# #??